[Event "DVM U12w 2023"]
[Site "Magdeburg"]
[Date "2023.12.29"]
[Round "6"]
[White "Oschinski, Mathilda"]
[Black "Schmidt Guevara, Daniela"]
[Result "0-1"]
[WhiteElo "1155"]
[BlackElo "1083"]
[PlyCount "55"]
[EventDate "2022.12.27"]
[EventType "team-tourn"]
[EventRounds "7"]
[EventCountry "GER"]
[TimeControl "40/5400+30:1800+30"]
[WhiteClock "0:44:40"]
[BlackClock "1:10:28"]

1. d4 {[%emt 0:00:02]} d5 {[%emt 0:00:07]} 2. Nc3 {[%emt 0:00:07]} Nf6 {[%emt 0:00:08]} 3. Bf4 {[%emt 0:00:05]} Bf5 {[%emt 0:00:18]} 4. f3 {[%emt 0:00:10]} Nc6 {[%emt 0:00:30]} 5. g4 {[%emt 0:00:15]} Bg6 {[%emt 0:00:58]} 6. h4 {[%emt 0:00:10]} h6 {[%emt 0:00:32]} 7. e3 {[%emt 0:00:15]} e6 {[%emt 0:00:24]} 8. Bd3 {[%emt 0:00:11]} Bh7 {[%emt 0:00:50]} 9. Bxh7 {[%emt 0:00:36]} Nxh7 {[%emt 0:00:28]} 10. Qd2 {[%emt 0:00:29]} Bb4 {[%emt 0:01:24]} 11. Nge2 {[%emt 0:01:02]} Qe7 {[%emt 0:01:28]} 12. O-O-O {[%emt 0:01:07]} O-O-O {[%emt 0:00:29]} 13. Qd3 {[%emt 0:01:56]} a6 {[%emt 0:01:27]} 14. Na4 {[%emt 0:08:37]} Ba5 {[%emt 0:01:40]} 15. Nc5 {[%emt 0:03:20]} Bb6 {[%emt 0:01:03]} 16. Qc3 {[%emt 0:00:57]} Bxc5 {[%emt 0:00:48]} 17. Qxc5 {[%emt 0:00:35]} Qxc5 {[%emt 0:00:10]} 18. dxc5 {[%emt 0:00:06]} e5 {[%emt 0:01:11]} 19. Bg3 {[%emt 0:01:14]} Rhe8 {[%emt 0:01:52]} 20. f4 {[%emt 0:06:06]} exf4 {[%emt 0:02:49]} 21. Bxf4 {[%emt 0:01:06]} Nf6 {[%emt 0:03:06]} 22. Nc3 {[%emt 0:04:31]} Ne4 {[%emt 0:01:20]} 23. Nxe4 {[%emt 0:01:47]} Rxe4 {[%emt 0:00:25]} 24. g5 {[%emt 0:02:06]} h5 {[%emt 0:03:07] gxh6 gxh6 Bxh6 d4} 25. Rh3 {[%emt 0:12:40] dxe3 Rxd8+ Nxd8 Bxe3} f5 {[%emt 0:06:58] h5 f4 Bd2 f3} 26. Rf3 {[%emt 0:00:00] Rh4 c4 Rxh5 b4 Ne6 Be3 Rh1+ Kc2 Rh2+ Kb3 Nd8 a4 c6 Bf4 Rh4} b5 {[%emt 0:11:20] a5 Bd2 Ne6 Bxa5 Nd4+ Kb4 Nxf3 bxc6 bxc6 Bb6 Nd2 Kc3 Nxc4 a5 Nxb6} 27. cxb6 {[%emt 0:22:58]} Kb7 {[%emt 0:22:02] Kb3 c5 Kc3 Ka6 Kb3 Kxa5 b7 Rh8 Kc4 Kb6 Kd5 Kxb7 Kxc5 Rh6 Kd5 Kc7 Ke5 Kd7 Kf5 Ke7 Kg5 Rc6 Kf5 Rb6 Kg5 Kf7 Kh5 Kg7 Kg5 Rb5+ Kf4 Kf6 Ke4 Rh5 Kf3 Rh4 Kg3 Kg5 Kf3 Rg4 Ke3 Kf5 Kf3 Ra4 Ke3 Rh4 Kd3 Ke5 Kc3 Kd5 Kb3 Kc5 Ka3 Kb5 Kb3} 28. Rh3 {[%emt 0:00:00] normal Kc2 Kb4 Kd2 Kc4 Ke2 Kd4 Kf2 Ke4 Kg2 Rb3 Kf2 Ra3 Kg2 Kf4 Kh2 Kg4 Kg2 Ra2+ Kf1 Kg3 Ke1 Kf3 Kd1 Ke3 Kc1 Kd3 Kb1 Rg2 Kc1 Rh2 Kb1 Kc3 Ka1 Kb3 Kb1 Rh1#} 0-1

[Event "DVM U12w 2023"]
[Site "Magdeburg"]
[Date "2023.12.29"]
[Round "6"]
[White "Roessler, Helena"]
[Black "Gelbach, Amelia"]
[Result "1-0"]
[WhiteElo "1060"]
[BlackElo "841"]
[PlyCount "59"]
[EventDate "2022.12.27"]
[EventType "team-tourn"]
[EventRounds "7"]
[EventCountry "GER"]
[TimeControl "40/5400+30:1800+30"]
[WhiteClock "1:21:44"]
[BlackClock "1:23:56"]

1. Nf3 {[%emt 0:00:02]} c5 {[%emt 0:00:07]} 2. g3 {[%emt 0:00:07]} d6 {[%emt 0:00:06]} 3. Bg2 {[%emt 0:00:07]} Nc6 {[%emt 0:00:08]} 4. O-O {[%emt 0:00:08]} g6 {[%emt 0:00:09]} 5. d3 {[%emt 0:00:14]} Bg7 {[%emt 0:00:12]} 6. c4 {[%emt 0:00:28]} Bd7 {[%emt 0:00:22]} 7. Nc3 {[%emt 0:00:14]} Qc8 {[%emt 0:00:10]} 8. Re1 {[%emt 0:00:27]} Bh3 {[%emt 0:00:47]} 9. Bh1 {[%emt 0:00:13]} Nh6 {[%emt 0:00:34]} 10. Nd5 {[%emt 0:04:39]} O-O {[%emt 0:01:34]} 11. Nf4 {[%emt 0:02:29]} Nd4 {[%emt 0:01:25]} 12. Nxd4 {[%emt 0:01:41]} Bxd4 {[%emt 0:00:30]} 13. Nxh3 {[%emt 0:00:16]} Qxh3 {[%emt 0:00:13]} 14. Bg2 {[%emt 0:00:13]} Qh5 {[%emt 0:00:52]} 15. e3 {[%emt 0:02:46]} Qxd1 {[%emt 0:06:13]} 16. Rxd1 {[%emt 0:00:12]} Bf6 {[%emt 0:00:26]} 17. d4 {[%emt 0:00:43]} cxd4 {[%emt 0:00:26]} 18. exd4 {[%emt 0:00:12]} a6 {[%emt 0:00:26]} 19. Bxh6 {[%emt 0:00:59]} Rfe8 {[%emt 0:00:35]} 20. Bxb7 {[%emt 0:00:29]} Rab8 {[%emt 0:00:24]} 21. Bxa6 {[%emt 0:00:14]} Rxb2 {[%emt 0:00:06]} 22. a4 {[%emt 0:01:55]} e5 {[%emt 0:01:01]} 23. d5 {[%emt 0:01:06]} e4 {[%emt 0:00:19]} 24. Ra3 {[%emt 0:00:27]} e3 {[%emt 0:01:22]} 25. Bxe3 {[%emt 0:00:38]} Rb4 {[%emt 0:01:00]} 26. Bb5 {[%emt 0:00:36]} Re5 {[%emt 0:00:21]} 27. a5 {[%emt 0:00:31]} h5 {[%emt 0:00:31]} 28. a6 {[%emt 0:00:50]} Rg5 {[%emt 0:00:33]} 29. Bxg5 {[%emt 0:00:20]} Bxg5 {[%emt 0:00:12]} 30. a7 {[%emt 0:01:24] normal} 1-0

[Event "DVM U12w 2023"]
[Site "Magdeburg"]
[Date "2023.12.29"]
[Round "6"]
[White "Sachsenröder, Frida"]
[Black "Grey, Paula"]
[Result "0-1"]
[WhiteElo "1059"]
[BlackElo "1008"]
[PlyCount "122"]
[EventDate "2022.12.27"]
[EventType "team-tourn"]
[EventRounds "7"]
[EventCountry "GER"]
[TimeControl "40/5400+30:1800+30"]

1. d4 {[%emt 0:00:03]} d5 {[%emt 0:00:10]} 2. Bf4 {[%emt 0:00:04]} Nc6 {[%emt 0:00:52]} 3. Nf3 {[%emt 0:00:11]} Bf5 {[%emt 0:00:46]} 4. e3 {[%emt 0:00:25]} a6 {[%emt 0:00:46]} 5. c4 {[%emt 0:00:24]} e6 {[%emt 0:00:45]} 6. Nc3 {[%emt 0:00:57]} Nf6 {[%emt 0:00:44]} 7. Bd3 {[%emt 0:00:37]} Bxd3 {[%emt 0:03:27]} 8. Qxd3 {[%emt 0:00:08]} Bd6 {[%emt 0:04:11]} 9. Ne5 {[%emt 0:00:33]} O-O {[%emt 0:06:12]} 10. O-O {[%emt 0:05:38]} h6 {[%emt 0:02:13]} 11. Rfe1 {[%emt 0:05:36]} Re8 {[%emt 0:00:38]} 12. e4 {[%emt 0:04:26]} Bb4 {[%emt 0:04:27]} 13. Bd2 {[%emt 0:07:07]} Bxc3 {[%emt 0:02:38]} 14. Nxc6 {[%emt 0:05:36]} bxc6 {[%emt 0:01:20]} 15. Qxc3 {[%emt 0:00:58]} Nxe4 {[%emt 0:02:01]} 16. Qc2 {[%emt 0:03:51]} Qf6 {[%emt 0:08:08]} 17. Ba5 {[%emt 0:03:08]} Qxd4 {[%emt 0:04:59]} 18. cxd5 {[%emt 0:01:40]} cxd5 {[%emt 0:04:28]} 19. Rad1 {[%emt 0:02:00]} Qc5 {[%emt 0:03:51]} 20. Qxc5 {[%emt 0:02:12]} Nxc5 {[%emt 0:00:14]} 21. Bxc7 {[%emt 0:00:34]} Rac8 {[%emt 0:02:04]} 22. Bb6 {[%emt 0:00:43]} Nd7 {[%emt 0:01:18]} 23. Bd4 {[%emt 0:01:26]} Rc2 {[%emt 0:02:48]} 24. h3 {[%emt 0:01:09]} a5 {[%emt 0:01:30]} 25. Rc1 {[%emt 0:00:45]} Rec8 {[%emt 0:00:43]} 26. Bc3 {[%emt 0:00:30]} Rxc1 {[%emt 0:00:39]} 27. Rxc1 {[%emt 0:00:11]} Nb6 {[%emt 0:02:02]} 28. Bd2 {[%emt 0:00:51]} Rxc1+ {[%emt 0:00:22]} 29. Bxc1 {[%emt 0:00:08]} Kf8 {[%emt 0:00:45]} 30. Kf1 {[%emt 0:00:30]} Ke7 {[%emt 0:00:51]} 31. Ke2 {[%emt 0:00:36]} Kd6 {[%emt 0:00:47]} 32. Kd3 {[%emt 0:00:19]} e5 {[%emt 0:01:33]} 33. Kc3 {[%emt 0:00:08]} d4+ {[%emt 0:01:42]} 34. Kb3 {[%emt 0:00:16]} Kd5 {[%emt 0:01:50]} 35. f3 {[%emt 0:00:55]} f6 {[%emt 0:00:56]} 36. Kc2 {[%emt 0:00:36]} f5 {[%emt 0:00:57]} 37. b3 {[%emt 0:00:17]} e4 {[%emt 0:01:22]} 38. fxe4+ {[%emt 0:00:12]} fxe4 {[%emt 0:00:59]} 39. Kd2 {[%emt 0:00:46]} Nd7 {[%emt 0:01:19]} 40. a3 {[%emt 0:00:40]} Nc5 {[%emt 0:02:03]} 41. b4 {[%emt 0:30:35]} axb4 {[%emt 0:30:47]} 42. axb4 {[%emt 0:00:13]} Nb3+ {[%emt 0:00:40]} 43. Kc2 {[%emt 0:01:03]} Nxc1 {[%emt 0:00:40]} 44. Kxc1 {[%emt 0:00:00]} Kc4 {[%emt 0:00:24]} 45. b5 {[%emt 0:00:10]} Kxb5 {[%emt 0:00:14]} 46. Kc2 {[%emt 0:00:12]} Kc4 {[%emt 0:00:32]} 47. Kd2 {[%emt 0:00:15]} e3+ {[%emt 0:01:38]} 48. Ke2 {[%emt 0:00:11]} d3+ {[%emt 0:01:12]} 49. Kxe3 {[%emt 0:01:27]} Kc3 {[%emt 0:00:49]} 50. g4 {[%emt 0:00:11]} d2 {[%emt 0:00:25]} 51. Kf4 {[%emt 0:00:12]} d1=Q {[%emt 0:01:04]} 52. Kg3 {[%emt 0:00:30]} g5 {[%emt 0:01:26]} 53. h4 {[%emt 0:00:17]} Qd3+ {[%emt 0:00:38]} 54. Kf2 {[%emt 0:00:17]} gxh4 {[%emt 0:01:15]} 55. Kg2 {[%emt 0:00:17]} Qg3+ {[%emt 0:01:41]} 56. Kf1 {[%emt 0:00:11]} h3 {[%emt 0:00:26]} 57. Ke2 {[%emt 0:00:06]} h2 {[%emt 0:00:47]} 58. g5 {[%emt 0:00:22]} hxg5 {[%emt 0:00:43]} 59. Kf1 {[%emt 0:00:27]} h1=R+ {[%emt 0:00:33]} 60. Ke2 {[%emt 0:00:30]} Rh2+ {[%emt 0:00:40]} 61. Kd1 {[%emt 0:01:04]} Qg1# {[%emt 0:00:35] normal} 0-1

[Event "DVM U12w 2023"]
[Site "Magdeburg"]
[Date "2023.12.29"]
[Round "6"]
[White "Prasannavenkatesan, Ananya"]
[Black "Gerth, Lydia"]
[Result "0-1"]
[WhiteElo "1045"]
[BlackElo "1214"]
[PlyCount "88"]
[EventDate "2022.12.27"]
[EventType "team-tourn"]
[EventRounds "7"]
[EventCountry "GER"]
[TimeControl "40/5400+30:1800+30"]
[WhiteClock "1:01:45"]
[BlackClock "0:59:21"]

1. e4 {[%emt 0:00:02]} e6 {[%emt 0:00:06]} 2. d4 {[%emt 0:00:04]} d5 {[%emt 0:00:10]} 3. exd5 {[%emt 0:00:20]} exd5 {[%emt 0:00:06]} 4. Nf3 {[%emt 0:00:39]} Nf6 {[%emt 0:00:16]} 5. Bg5 {[%emt 0:00:28]} Bd6 {[%emt 0:00:30]} 6. Nc3 {[%emt 0:00:32]} c6 {[%emt 0:00:32]} 7. Be2 {[%emt 0:01:57]} Be6 {[%emt 0:01:31]} 8. O-O {[%emt 0:00:48]} h6 {[%emt 0:01:15]} 9. Bh4 {[%emt 0:00:15]} Nbd7 {[%emt 0:00:33]} 10. Re1 {[%emt 0:00:20]} Qc7 {[%emt 0:00:44]} 11. Bxf6 {[%emt 0:02:52]} Nxf6 {[%emt 0:00:11]} 12. h3 {[%emt 0:00:08]} O-O-O {[%emt 0:01:47]} 13. a3 {[%emt 0:01:05]} g5 {[%emt 0:00:25]} 14. b4 {[%emt 0:01:24]} Rh7 {[%emt 0:02:07]} 15. Ne5 {[%emt 0:00:42]} Rg8 {[%emt 0:03:36]} 16. b5 {[%emt 0:00:56]} c5 {[%emt 0:03:23]} 17. b6 {[%emt 0:02:26]} axb6 {[%emt 0:01:20]} 18. Nb5 {[%emt 0:00:12]} Qb8 {[%emt 0:01:25]} 19. c3 {[%emt 0:01:06]} Nd7 {[%emt 0:02:07]} 20. Nxd7 {[%emt 0:00:57]} Bxd7 {[%emt 0:00:34]} 21. dxc5 {[%emt 0:01:26]} Be5 {[%emt 0:02:26]} 22. Qc2 {[%emt 0:00:45]} Rhg7 {[%emt 0:00:41]} 23. cxb6 {[%emt 0:01:06]} g4 {[%emt 0:01:26]} 24. h4 {[%emt 0:00:23]} f5 {[%emt 0:00:33]} 25. Na7+ {[%emt 0:00:54]} Kd8 {[%emt 0:00:27]} 26. Rad1 {[%emt 0:00:59]} f4 {[%emt 0:01:36]} 27. Bd3 {[%emt 0:00:44]} Bf6 {[%emt 0:01:10]} 28. h5 {[%emt 0:01:15]} Rg5 {[%emt 0:01:43]} 29. Bg6 {[%emt 0:00:11]} Qd6 {[%emt 0:01:37]} 30. Rb1 {[%emt 0:00:43]} Qc5 {[%emt 0:00:52]} 31. Kf1 {[%emt 0:02:42]} Re5 {[%emt 0:03:39]} 32. Rxe5 {[%emt 0:00:35]} Bxe5 {[%emt 0:00:13]} 33. c4 {[%emt 0:02:16]} Qxc4+ {[%emt 0:01:26]} 34. Qxc4 {[%emt 0:00:21]} dxc4 {[%emt 0:00:10]} 35. Bf7 {[%emt 0:00:02]} Rg5 {[%emt 0:00:57]} 36. Bxc4 {[%emt 0:00:27]} Rxh5 {[%emt 0:00:06]} 37. Kg1 {[%emt 0:00:24]} g3 {[%emt 0:01:16]} 38. Rd1 {[%emt 0:01:24]} Ke7 {[%emt 0:02:12]} 39. Bb5 {[%emt 0:00:51]} Be6 {[%emt 0:00:49]} 40. a4 {[%emt 0:02:21]} Bc3 {[%emt 0:00:52]} 41. Kf1 {[%emt 0:37:24]} Rh1+ {[%emt 0:32:19]} 42. Ke2 {[%emt 0:00:16]} f3+ {[%emt 0:01:08]} 43. gxf3 {[%emt 0:02:46]} g2 {[%emt 0:00:55]} 44. Nc6+ {[%emt 0:03:17]} Kf6 {[%emt 0:01:58] normal} 0-1

[Event "DVM U12w 2023"]
[Site "Magdeburg"]
[Date "2023.12.29"]
[Round "6"]
[White "Lao, Theodora Siyuan"]
[Black "Anaparthi, Anika"]
[Result "1-0"]
[WhiteElo "1044"]
[BlackElo "902"]
[PlyCount "91"]
[EventDate "2022.12.27"]
[EventType "team-tourn"]
[EventRounds "7"]
[EventCountry "GER"]
[TimeControl "40/5400+30:1800+30"]
[WhiteClock "1:38:09"]
[BlackClock "0:54:52"]

1. e4 {[%emt 0:00:01]} e5 {[%emt 0:00:05]} 2. Nc3 {[%emt 0:00:06]} Nf6 {[%emt 0:00:12]} 3. f4 {[%emt 0:00:07]} d6 {[%emt 0:00:14]} 4. Nf3 {[%emt 0:00:20]} Nc6 {[%emt 0:00:08]} 5. d4 {[%emt 0:00:29]} exd4 {[%emt 0:00:44]} 6. e5 {[%emt 0:00:15]} dxc3 {[%emt 0:02:35]} 7. exf6 {[%emt 0:00:20]} Qxf6 {[%emt 0:00:11]} 8. Qe2+ {[%emt 0:00:38]} Be7 {[%emt 0:00:22]} 9. b3 {[%emt 0:00:51]} O-O {[%emt 0:00:41]} 10. g3 {[%emt 0:00:31]} Bg4 {[%emt 0:00:27]} 11. Bg2 {[%emt 0:00:12]} Nd4 {[%emt 0:00:30]} 12. Qd3 {[%emt 0:00:37]} Bf5 {[%emt 0:00:16]} 13. Qxd4 {[%emt 0:00:36]} Qe6+ {[%emt 0:01:30]} 14. Qe3 {[%emt 0:00:48]} Qxe3+ {[%emt 0:02:14]} 15. Bxe3 {[%emt 0:00:11]} Bxc2 {[%emt 0:00:09]} 16. Rc1 {[%emt 0:00:15]} Bf5 {[%emt 0:01:18]} 17. Rxc3 {[%emt 0:00:15]} Bf6 {[%emt 0:00:09]} 18. Rxc7 {[%emt 0:00:15]} b6 {[%emt 0:02:33]} 19. Nd4 {[%emt 0:00:29]} Bd8 {[%emt 0:04:35]} 20. Nxf5 {[%emt 0:00:15]} Bxc7 {[%emt 0:00:41]} 21. Bxa8 {[%emt 0:00:11]} Rxa8 {[%emt 0:00:22]} 22. O-O {[%emt 0:00:22]} Re8 {[%emt 0:00:58]} 23. Rc1 {[%emt 0:00:30]} g6 {[%emt 0:08:30]} 24. Rxc7 {[%emt 0:00:34]} gxf5 {[%emt 0:00:15]} 25. Bf2 {[%emt 0:00:36]} b5 {[%emt 0:17:27]} 26. Bxa7 {[%emt 0:00:20]} Re1+ {[%emt 0:00:23]} 27. Kg2 {[%emt 0:00:05]} Re2+ {[%emt 0:00:06]} 28. Bf2 {[%emt 0:00:09]} Rxa2 {[%emt 0:00:19]} 29. Rb7 {[%emt 0:00:20]} Ra5 {[%emt 0:01:47]} 30. b4 {[%emt 0:00:18]} Ra2 {[%emt 0:00:50]} 31. Rxb5 {[%emt 0:00:16]} Rb2 {[%emt 0:00:59]} 32. Kf3 {[%emt 0:00:29]} Kg7 {[%emt 0:00:23]} 33. Bd4+ {[%emt 0:00:11]} Kf8 {[%emt 0:00:20]} 34. Bxb2 {[%emt 0:00:14]} Ke7 {[%emt 0:00:35]} 35. Rxf5 {[%emt 0:00:12]} Ke6 {[%emt 0:00:16]} 36. Ra5 {[%emt 0:00:23]} d5 {[%emt 0:02:13]} 37. b5 {[%emt 0:00:10]} Kd7 {[%emt 0:00:28]} 38. b6 {[%emt 0:00:21]} Kc8 {[%emt 0:00:10]} 39. Rxd5 {[%emt 0:00:14]} Kb7 {[%emt 0:00:09]} 40. Rb5 {[%emt 0:00:16]} Kb8 {[%emt 0:00:18]} 41. b7 {[%emt 0:00:09]} Kc7 {[%emt 0:00:22]} 42. b8=Q+ {[%emt 0:00:14]} Kd7 {[%emt 0:30:02]} 43. Rc5 {[%emt 0:30:38]} Ke7 {[%emt 0:00:12]} 44. Qe5+ {[%emt 0:00:12]} Kd7 {[%emt 0:00:24]} 45. Rc7+ {[%emt 0:00:14]} Kd8 {[%emt 0:00:46]} 46. Qe7# {[%emt 0:00:12] normal} 1-0

[Event "DVM U12w 2023"]
[Site "Magdeburg"]
[Date "2023.12.29"]
[Round "6"]
[White "Haas, Valentina"]
[Black "Weißleder, Emia"]
[Result "0-1"]
[WhiteElo "1010"]
[BlackElo "1041"]
[PlyCount "80"]
[EventDate "2022.12.27"]
[EventType "team-tourn"]
[EventRounds "7"]
[EventCountry "GER"]
[TimeControl "40/5400+30:1800+30"]
[WhiteClock "1:20:18"]
[BlackClock "1:12:19"]

1. e4 {[%emt 0:00:02]} c5 {[%emt 0:00:11]} 2. Bc4 {[%emt 0:00:13]} d6 {[%emt 0:00:11]} 3. Nc3 {[%emt 0:00:55]} Nc6 {[%emt 0:00:13]} 4. Nf3 {[%emt 0:00:17]} Nf6 {[%emt 0:00:15]} 5. d3 {[%emt 0:00:11]} g6 {[%emt 0:00:08]} 6. Be3 {[%emt 0:00:14]} Bg7 {[%emt 0:00:22]} 7. Qd2 {[%emt 0:00:29]} O-O {[%emt 0:00:33]} 8. Bh6 {[%emt 0:00:20]} Qb6 {[%emt 0:05:46]} 9. b3 {[%emt 0:01:39]} Qa5 {[%emt 0:01:34]} 10. Bxg7 {[%emt 0:01:30]} Kxg7 {[%emt 0:00:20]} 11. O-O {[%emt 0:00:33]} Qc7 {[%emt 0:04:37]} 12. Qf4 {[%emt 0:02:32]} Be6 {[%emt 0:04:29]} 13. Bxe6 {[%emt 0:03:04]} fxe6 {[%emt 0:00:23]} 14. Ng5 {[%emt 0:00:58]} Qa5 {[%emt 0:02:13]} 15. Ne2 {[%emt 0:01:07]} Ne5 {[%emt 0:02:16]} 16. h3 {[%emt 0:01:08]} Nh5 {[%emt 0:02:18]} 17. Qe3 {[%emt 0:00:53]} Rf6 {[%emt 0:01:07]} 18. Ng3 {[%emt 0:02:27]} Nf4 {[%emt 0:02:42]} 19. Nf3 {[%emt 0:01:45]} Nxf3+ {[%emt 0:01:24]} 20. Qxf3 {[%emt 0:00:28]} Nxh3+ {[%emt 0:00:26]} 21. Kh2 {[%emt 0:00:20]} Rxf3 {[%emt 0:00:08]} 22. gxf3 {[%emt 0:00:12]} Ng5 {[%emt 0:00:18]} 23. f4 {[%emt 0:00:49]} Nf3+ {[%emt 0:00:12]} 24. Kh3 {[%emt 0:00:24]} Rf8 {[%emt 0:00:36]} 25. f5 {[%emt 0:00:46]} exf5 {[%emt 0:00:22]} 26. exf5 {[%emt 0:00:16]} gxf5 {[%emt 0:00:07]} 27. Kg2 {[%emt 0:00:14]} Nh4+ {[%emt 0:00:18]} 28. Kh3 {[%emt 0:00:12]} f4 {[%emt 0:00:04]} 29. Kxh4 {[%emt 0:00:49]} fxg3 {[%emt 0:00:04]} 30. Kxg3 {[%emt 0:00:30]} d5 {[%emt 0:00:24]} 31. Rfe1 {[%emt 0:00:16]} Qc7+ {[%emt 0:00:11]} 32. Kg2 {[%emt 0:00:14]} Kh8 {[%emt 0:01:23]} 33. Kf1 {[%emt 0:00:56]} Qf4 {[%emt 0:00:20]} 34. Re2 {[%emt 0:00:17]} Qf3 {[%emt 0:00:22]} 35. Ke1 {[%emt 0:00:24]} Qh1+ {[%emt 0:00:13]} 36. Kd2 {[%emt 0:00:09]} Qxa1 {[%emt 0:00:12]} 37. f3 {[%emt 0:00:41]} Rxf3 {[%emt 0:00:27]} 38. a4 {[%emt 0:00:13]} d4 {[%emt 0:00:14]} 39. a5 {[%emt 0:01:00]} Rf1 {[%emt 0:00:09]} 40. Re1 {[%emt 0:00:45]} Qxe1# {[%emt 0:00:39] normal} 0-1

[Event "DVM U12w 2023"]
[Site "Magdeburg"]
[Date "2023.12.29"]
[Round "6"]
[White "Nikitina, Alisa"]
[Black "Subocz, Emma"]
[Result "0-1"]
[WhiteElo "1004"]
[BlackElo "827"]
[PlyCount "64"]
[EventDate "2022.12.27"]
[EventType "team-tourn"]
[EventRounds "7"]
[EventCountry "GER"]
[TimeControl "40/5400+30:1800+30"]
[WhiteClock "0:34:55"]
[BlackClock "1:10:48"]

1. e4 {[%emt 0:00:06]} e5 {[%emt 0:00:02]} 2. Nf3 {[%emt 0:00:09]} Nc6 {[%emt 0:00:08]} 3. Bc4 {[%emt 0:00:14]} Nf6 {[%emt 0:00:09]} 4. Nc3 {[%emt 0:01:05]} Bc5 {[%emt 0:00:12]} 5. d3 {[%emt 0:00:21]} d6 {[%emt 0:01:00]} 6. Bg5 {[%emt 0:00:11]} h6 {[%emt 0:00:37]} 7. Bxf6 {[%emt 0:01:14]} Qxf6 {[%emt 0:00:17]} 8. h3 {[%emt 0:00:27]} O-O {[%emt 0:00:23]} 9. O-O {[%emt 0:00:52]} Be6 {[%emt 0:01:09]} 10. Nb5 {[%emt 0:02:43]} Qd8 {[%emt 0:00:17]} 11. a3 {[%emt 0:12:10]} a6 {[%emt 0:02:31]} 12. Nc3 {[%emt 0:00:37]} Qd7 {[%emt 0:01:02]} 13. Nh4 {[%emt 0:08:05]} Qe7 {[%emt 0:02:58]} 14. Nf5 {[%emt 0:00:43]} Qg5 {[%emt 0:01:18]} 15. h4 {[%emt 0:01:36]} Qf6 {[%emt 0:00:39]} 16. Qg4 {[%emt 0:04:25]} Nd4 {[%emt 0:01:05]} 17. Bxe6 {[%emt 0:01:39]} fxe6 {[%emt 0:00:27]} 18. Ne3 {[%emt 0:08:07]} Rf7 {[%emt 0:02:45]} 19. Na4 {[%emt 0:03:49]} Raf8 {[%emt 0:02:02]} 20. Nd1 {[%emt 0:02:45]} Nxc2 {[%emt 0:00:54]} 21. Rc1 {[%emt 0:01:59]} Nd4 {[%emt 0:10:56]} 22. Nxc5 {[%emt 0:00:23]} dxc5 {[%emt 0:00:15]} 23. h5 {[%emt 0:06:11]} b6 {[%emt 0:00:42]} 24. b4 {[%emt 0:04:48]} Qf4 {[%emt 0:00:30]} 25. Qxf4 {[%emt 0:01:00]} exf4 {[%emt 0:00:12]} 26. bxc5 {[%emt 0:00:58]} Ne2+ {[%emt 0:00:13]} 27. Kh1 {[%emt 0:00:14]} Nxc1 {[%emt 0:00:06]} 28. cxb6 {[%emt 0:01:15]} cxb6 {[%emt 0:00:10]} 29. d4 {[%emt 0:00:30]} e5 {[%emt 0:00:39]} 30. d5 {[%emt 0:02:14]} Rd8 {[%emt 0:00:20]} 31. Nc3 {[%emt 0:00:16]} Nd3 {[%emt 0:01:32]} 32. Rd1 {[%emt 0:00:29]} Nxf2+ {[%emt 0:00:12] normal} 0-1

[Event "DVM U12w 2023"]
[Site "Magdeburg"]
[Date "2023.12.29"]
[Round "6"]
[White "Yamshchikova, Oleksandra"]
[Black "Kuehne, Malin"]
[Result "0-1"]
[WhiteElo "956"]
[BlackElo "1264"]
[PlyCount "122"]
[EventDate "2022.12.27"]
[EventType "team-tourn"]
[EventRounds "7"]
[EventCountry "GER"]
[TimeControl "40/5400+30:1800+30"]
[WhiteClock "1:04:32"]
[BlackClock "0:16:38"]

1. e4 {[%emt 0:00:02]} c6 {[%emt 0:00:06]} 2. d4 {[%emt 0:00:08]} d5 {[%emt 0:00:07]} 3. e5 {[%emt 0:00:10]} c5 {[%emt 0:00:10]} 4. c3 {[%emt 0:00:20]} Nc6 {[%emt 0:01:09]} 5. Nf3 {[%emt 0:00:33]} e6 {[%emt 0:01:24]} 6. Be2 {[%emt 0:02:24]} Nge7 {[%emt 0:01:03]} 7. Bg5 {[%emt 0:00:52]} Qb6 {[%emt 0:03:28]} 8. O-O {[%emt 0:00:49]} Qb4 {[%emt 0:05:41]} 9. b3 Qxb3 {[%emt 0:00:30]} 10. Nbd2 {[%emt 0:01:30]} Qb6 {[%emt 0:04:05]} 11. Rb1 {[%emt 0:01:08]} Qc7 {[%emt 0:00:13]} 12. dxc5 {[%emt 0:06:54]} Ng6 {[%emt 0:01:10]} 13. c4 {[%emt 0:01:22]} dxc4 {[%emt 0:08:29]} 14. Nxc4 {[%emt 0:00:40]} Bxc5 {[%emt 0:07:00]} 15. Nd6+ {[%emt 0:01:20]} Bxd6 {[%emt 0:01:47]} 16. Qxd6 {[%emt 0:01:10]} Qxd6 {[%emt 0:00:17]} 17. exd6 {[%emt 0:00:15]} Nf8 {[%emt 0:08:36]} 18. Rbd1 {[%emt 0:00:21]} Nd7 {[%emt 0:02:18]} 19. Rc1 {[%emt 0:01:13]} a6 {[%emt 0:03:57]} 20. Rc2 {[%emt 0:00:34]} O-O {[%emt 0:01:49]} 21. Rfc1 {[%emt 0:00:57]} f6 {[%emt 0:02:58]} 22. Bh4 {[%emt 0:00:15]} Rd8 {[%emt 0:01:44]} 23. Rd1 {[%emt 0:01:53]} Nf8 {[%emt 0:02:09]} 24. Rcd2 {[%emt 0:00:36]} Bd7 {[%emt 0:01:13]} 25. Bd3 {[%emt 0:02:07]} Rac8 {[%emt 0:02:52]} 26. Be4 {[%emt 0:00:26]} b5 {[%emt 0:01:45]} 27. Bxc6 {[%emt 0:00:23]} Bxc6 {[%emt 0:01:22]} 28. h3 {[%emt 0:00:39]} Bxf3 {[%emt 0:04:14]} 29. gxf3 {[%emt 0:02:34]} Rd7 {[%emt 0:03:10]} 30. Kg2 {[%emt 0:01:15]} Rc6 {[%emt 0:01:15]} 31. Kh2 {[%emt 0:01:53]} Kf7 {[%emt 0:02:49]} 32. Kh1 {[%emt 0:00:30]} e5 {[%emt 0:00:32]} 33. Kh2 {[%emt 0:00:25]} Ke6 {[%emt 0:00:10]} 34. Rg1 {[%emt 0:01:07]} g5 {[%emt 0:03:24]} 35. Bg3 {[%emt 0:01:45]} Rdxd6 {[%emt 0:00:54]} 36. Rxd6+ {[%emt 0:02:09]} Rxd6 {[%emt 0:00:31]} 37. Rc1 {[%emt 0:00:35]} Kd7 {[%emt 0:01:04]} 38. h4 {[%emt 0:00:58]} h6 {[%emt 0:02:05]} 39. h5 {[%emt 0:01:25]} Ne6 {[%emt 0:01:48]} 40. Kh3 {[%emt 0:01:11]} Ng7 {[%emt 0:00:36]} 41. Kg4 {[%emt 0:30:45]} Rd4+ {[%emt 0:30:34]} 42. Kh3 {[%emt 0:01:46]} Nxh5 {[%emt 0:00:57]} 43. Rh1 {[%emt 0:00:39]} Ke6 {[%emt 0:02:09]} 44. Kg2 {[%emt 0:00:23]} Nxg3 {[%emt 0:00:17]} 45. fxg3 {[%emt 0:00:28]} Rd2+ {[%emt 0:00:12]} 46. Kh3 {[%emt 0:01:29]} Rxa2 {[%emt 0:01:26]} 47. Kg4 {[%emt 0:00:27]} b4 {[%emt 0:01:10]} 48. Rb1 {[%emt 0:00:25]} a5 {[%emt 0:00:52]} 49. f4 {[%emt 0:00:42]} gxf4 {[%emt 0:02:15]} 50. gxf4 {[%emt 0:00:12]} e4 {[%emt 0:01:40]} 51. Re1 {[%emt 0:00:28]} f5+ {[%emt 0:00:18]} 52. Kg3 {[%emt 0:00:05]} b3 {[%emt 0:00:13]} 53. Rb1 {[%emt 0:00:37]} b2 {[%emt 0:00:10]} 54. Kf2 {[%emt 0:00:10]} a4 {[%emt 0:00:11]} 55. Ke2 {[%emt 0:00:30]} a3 {[%emt 0:00:06]} 56. Rd1 {[%emt 0:00:13]} b1=Q+ {[%emt 0:00:13]} 57. Ke1 {[%emt 0:00:25]} Qb4+ {[%emt 0:00:31]} 58. Kf1 {[%emt 0:00:24]} Qc4+ {[%emt 0:00:12]} 59. Kg1 {[%emt 0:00:08]} Qc2 {[%emt 0:00:16]} 60. Rd6+ Kxd6 {[%emt 0:00:07]} 61. Kf1 {[%emt 0:01:24]} Qf2# {[%emt 0:00:39] normal} 0-1